bitfinex/quotes_BTCUSD_20230106
["timestamp","ask_amount","ask_price","bid_price","bid_amount"]
[1672982659859,0.56464685,16827.0,16826.0,0.73766025]
[1672982660665,0.56464685,16827.0,16826.0,0.73758364]
[1672982661452,0.56464685,16827.0,16826.0,0.64931364]
[1672982663152,0.0295561,16827.0,16826.0,0.64931364]
[1672982663421,0.0295561,16827.0,16826.0,0.65002863]
[1672982663682,0.56464685,16827.0,16826.0,0.65002863]
[1672982664176,0.56464685,16827.0,16826.0,0.64931364]
[1672982666370,0.0295561,16827.0,16826.0,0.64931364]
[1672982667637,0.47535502,16827.0,16826.0,1.24363164]
[1672982667893,0.0295561,16827.0,16826.0,1.24363164]
[1672982668156,0.0295561,16827.0,16826.0,0.64931364]
[1672982668642,0.475297,16827.0,16826.0,0.64931364]
[1672982668899,0.4752971,16827.0,16826.0,0.64931364]
[1672982669433,0.4752971,16827.0,16826.0,0.64964539]
[1672982670935,0.4752971,16827.0,16826.0,0.64931364]
[1672982671443,0.0295561,16827.0,16826.0,0.64931364]
[1672982679111,0.47518194,16827.0,16826.0,0.64931364]
[1672982680634,0.0295561,16827.0,16826.0,0.64931364]
[1672982683184,0.0295561,16827.0,16826.0,0.64922741]
[1672982687361,0.47522757,16827.0,16826.0,0.64922741]
[1672982687856,0.0295561,16827.0,16826.0,0.64922741]
[1672982689501,0.47522568,16827.0,16826.0,0.64922741]
[1672982689774,0.47522406,16827.0,16826.0,0.64922741]
[1672982690291,0.0295561,16827.0,16826.0,0.64922741]
[1672982695696,0.14611845,16827.0,16826.0,0.02546668]
[1672982695953,0.6812092,16827.0,16826.0,0.02546668]
[1672982696240,1.2928462,16827.0,16826.0,0.02546668]
[1672982698301,0.6812092,16827.0,16826.0,0.02546668]
[1672982700074,1.2928462,16827.0,16826.0,0.02546668]
[1672982700330,0.6812092,16827.0,16826.0,0.02546668]
[1672982700845,1.2928462,16827.0,16826.0,0.02546668]
[1672982701622,0.6812092,16827.0,16826.0,0.02546668]
[1672982702137,1.2928462,16827.0,16826.0,0.02546668]
[1672982703686,0.6812092,16827.0,16826.0,0.02546668]
[1672982705300,0.56464685,16827.0,16826.0,0.02539056]
[1672982706296,0.56464685,16827.0,16826.0,0.71038261]
[1672982706581,0.0295561,16827.0,16826.0,0.71038261]
[1672982712592,0.02837594,16827.0,16826.0,0.71038261]
[1672982713346,0.56346669,16827.0,16826.0,0.71038261]
[1672982716582,0.56346669,16827.0,16826.0,0.02539056]
[1672982716832,1.17510369,16827.0,16826.0,0.02539056]
[1672982717439,0.56346669,16827.0,16826.0,0.02539056]
[1672982720265,0.02837594,16827.0,16826.0,0.6385565]
[1672982721060,0.02837594,16827.0,16826.0,0.02539056]
[1672982721331,0.56346669,16827.0,16826.0,0.02539056]
[1672982721583,1.17510369,16827.0,16826.0,0.02539056]
[1672982722633,0.56346669,16827.0,16826.0,0.02539056]
[1672982724613,1.17510369,16827.0,16826.0,0.02539056]
[1672982725147,1.06346669,16827.0,16826.0,0.02539056]
[1672982725361,1.67510369,16827.0,16826.0,0.02539056]
[1672982725588,1.06346669,16827.0,16826.0,0.02539056]
[1672982725844,1.67510369,16827.0,16826.0,0.02539056]
[1672982726607,1.06346669,16827.0,16826.0,0.02539056]
[1672982726857,1.67510369,16827.0,16826.0,0.02539056]
[1672982727358,0.56346669,16827.0,16826.0,0.02539056]
[1672982728843,1.06346669,16827.0,16826.0,0.02539056]
[1672982729116,1.67510369,16827.0,16826.0,0.02539056]
[1672982729376,1.06346669,16827.0,16826.0,0.02539056]
[1672982729896,0.56346669,16827.0,16826.0,0.02539056]
[1672982730422,1.06346669,16827.0,16826.0,0.02539056]
[1672982730695,0.56346669,16827.0,16826.0,0.02539056]
[1672982732247,1.85081845,16827.0,16826.0,0.02539056]
[1672982732569,2.46245545,16827.0,16826.0,0.02539056]
[1672982733034,1.85081845,16827.0,16826.0,0.02539056]
[1672982733290,2.46245545,16827.0,16826.0,0.02539056]
[1672982734317,1.85081845,16827.0,16826.0,0.02539056]
[1672982734572,2.46245545,16827.0,16826.0,0.02539056]
[1672982734828,1.85081845,16827.0,16826.0,0.02539056]
[1672982735100,2.46245545,16827.0,16826.0,0.02539056]
[1672982735606,1.85081845,16827.0,16826.0,0.02539056]
[1672982735874,1.85081845,16827.0,16826.0,0.02527826]
[1672982735875,2.46245545,16827.0,16826.0,0.02527826]
[1672982736126,1.85081845,16827.0,16826.0,0.02527826]
[1672982736435,2.46245545,16827.0,16826.0,0.02527826]
[1672982737395,1.85081845,16827.0,16826.0,0.02527826]
[1672982737658,2.46245545,16827.0,16826.0,0.02527826]
[1672982737918,1.85081845,16827.0,16826.0,0.02527826]
[1672982738181,2.46245545,16827.0,16826.0,0.02527826]
[1672982738749,1.85081845,16827.0,16826.0,0.02527826]
[1672982738994,2.46245545,16827.0,16826.0,0.02527826]
[1672982740313,2.57883195,16827.0,16826.0,0.02527826]
[1672982741025,2.46237859,16827.0,16826.0,0.02527826]
[1672982741284,1.85074159,16827.0,16826.0,0.02527826]
[1672982741543,2.46237859,16827.0,16826.0,0.02527826]
[1672982741791,1.85074159,16827.0,16826.0,0.02527826]
[1672982742056,2.46237859,16827.0,16826.0,0.02527826]
[1672982742330,1.85074159,16827.0,16826.0,0.02527826]
[1672982742552,2.46237859,16827.0,16826.0,0.02527826]
[1672982743077,1.85074159,16827.0,16826.0,0.02527826]
[1672982743334,2.46237859,16827.0,16826.0,0.02527826]
[1672982743592,1.85074159,16827.0,16826.0,0.02527826]
[1672982743860,2.46237859,16827.0,16826.0,0.02527826]
[1672982744376,1.85074159,16827.0,16826.0,0.02527826]
[1672982744649,2.46237859,16827.0,16826.0,0.02527826]
[1672982745153,1.85074159,16827.0,16826.0,0.02527826]
[1672982745612,1.25645959,16827.0,16826.0,0.02527826]
[1672982748503,1.86809659,16827.0,16826.0,0.02527826]
[1672982748751,1.25645959,16827.0,16826.0,0.02527826]
[1672982749499,1.86809659,16827.0,16826.0,0.02527826]
[1672982750017,1.25645959,16827.0,16826.0,0.02527826]
[1672982762349,1.5017073,16827.0,16826.0,0.02527826]
[1672982763659,2.0959893,16827.0,16826.0,0.02527826]
[1672982763911,2.1133443,16827.0,16826.0,0.02527826]
[1672982765180,2.1133443,16827.0,16826.0,0.02519416]
[1672982765656,1.86809659,16827.0,16826.0,0.02519416]
[1672982765914,1.25645959,16827.0,16826.0,0.02519416]
[1672982766183,1.86809659,16827.0,16826.0,0.02519416]
[1672982766657,1.25645959,16827.0,16826.0,0.02519416]
[1672982773477,1.25645959,16827.0,16826.0,0.6174441]
[1672982773767,1.37631818,16827.0,16826.0,0.6174441]
[1672982777124,1.98795518,16827.0,16826.0,0.6174441]
[1672982777863,1.98795518,16827.0,16826.0,0.02519416]
[1672982778091,1.45286443,16827.0,16826.0,0.02519416]
[1672982778611,1.43550943,16827.0,16826.0,0.02519416]
[1672982778867,2.04714643,16827.0,16826.0,0.02519416]
[1672982780713,1.43550943,16827.0,16826.0,0.02519416]
[1672982785059,1.43550943,16827.0,16826.0,0.02511671]
[1672982785373,1.31565084,16827.0,16826.0,0.02511671]
[1672982786334,1.85059272,16827.0,16826.0,0.02511671]
[1672982786584,1.25631072,16827.0,16826.0,0.02511671]
[1672982787431,0.72136884,16827.0,16826.0,0.02511671]
[1672982787682,1.22136884,16827.0,16826.0,0.02511671]
[1672982788456,1.52253528,16827.0,16826.0,0.02511671]
[1672982788712,1.22136884,16827.0,16826.0,0.02511671]
[1672982789568,1.83300584,16827.0,16826.0,0.02511671]
[1672982789822,1.22136884,16827.0,16826.0,0.02511671]
[1672982793634,1.81565084,16827.0,16826.0,0.02511671]
[1672982796118,2.42728784,16827.0,16826.0,0.02511671]
[1672982796373,2.57064711,16827.0,16826.0,0.02511671]
[1672982799368,2.4115855,16827.0,16826.0,0.02511671]
[1672982799641,2.33480226,16827.0,16826.0,0.02511671]
[1672982799911,2.95866424,16827.0,16826.0,0.02511671]
[1672982800171,2.34702724,16827.0,16826.0,0.02511671]
[1672982800426,2.42381048,16827.0,16826.0,0.02511671]
[1672982800952,1.81217348,16827.0,16826.0,0.02511671]
[1672982801206,2.42381048,16827.0,16826.0,0.02511671]
[1672982802238,1.81217348,16827.0,16826.0,0.02511671]
[1672982802988,2.42381048,16827.0,16826.0,0.02511671]
[1672982803267,1.81217348,16827.0,16826.0,0.02511671]
[1672982804569,2.17242018,16827.0,16826.0,0.02511671]
[1672982806174,2.78405718,16827.0,16826.0,0.02511671]
[1672982806442,3.98008969,16827.0,16826.0,0.02511671]
[1672982806941,4.52888015,16827.0,16826.0,0.02511671]
[1672982807217,4.57301949,16827.0,16826.0,0.02511671]
[1672982807482,4.11622409,16827.0,16826.0,0.02511671]
[1672982807784,4.15186343,16827.0,16826.0,0.02511671]
[1672982808050,4.15186343,16827.0,16825.0,0.00678781]
[1672982808304,3.03343597,16827.0,16826.0,0.002]
[1672982808576,4.01326898,16827.0,16826.0,0.002]
[1672982808846,4.15186343,16827.0,16825.0,0.00678781]
[1672982809133,1.76183037,16826.0,16825.0,0.00678781]
[1672982809404,3.52409835,16826.0,16825.0,0.00678781]
[1672982809660,4.2323694,16826.0,16825.0,0.00678781]
[1672982810216,3.68357894,16826.0,16825.0,0.00678781]
[1672982810501,3.50298449,16826.0,16825.0,0.00678781]
[1672982810764,3.50398449,16826.0,16825.0,0.03478781]
[1672982811021,3.50298449,16826.0,16825.0,0.00678781]
[1672982811311,3.54498449,16826.0,16825.0,0.00878781]
[1672982811581,3.58062383,16826.0,16825.0,0.00878781]
[1672982816183,4.12941429,16826.0,16825.0,0.00878781]
[1672982816436,3.58062383,16826.0,16825.0,0.00878781]
[1672982816719,4.12941429,16826.0,16825.0,0.00878781]
[1672982817236,3.58062383,16826.0,16825.0,0.00878781]
[1672982817754,2.97922092,16826.0,16825.0,0.00878781]
[1672982818316,3.58062383,16826.0,16825.0,0.00878781]
[1672982818597,2.97922092,16826.0,16825.0,0.00878781]
[1672982819391,3.58062383,16826.0,16825.0,0.00878781]
[1672982819995,2.97922092,16826.0,16825.0,0.00878781]
[1672982820260,3.58062383,16826.0,16825.0,0.00878781]
[1672982820528,4.12941429,16826.0,16825.0,0.00878781]
[1672982821015,3.58062383,16826.0,16825.0,0.00878781]
[1672982821281,4.12941429,16826.0,16825.0,0.00878781]
[1672982821803,4.42941429,16826.0,16825.0,0.00878781]
[1672982822059,4.61000874,16826.0,16825.0,0.00878781]
[1672982822325,3.76121828,16826.0,16825.0,0.00878781]
[1672982822587,3.58062383,16826.0,16825.0,0.00878781]
[1672982823110,4.12941429,16826.0,16825.0,0.00878781]
[1672982824144,4.12941429,16826.0,16825.0,0.00870925]
[1672982824875,4.42941429,16826.0,16825.0,0.00870925]
[1672982825167,4.61000874,16826.0,16825.0,0.00870925]
[1672982825417,4.31000874,16826.0,16825.0,0.00870925]
[1672982825677,3.54498449,16826.0,16825.0,0.00870925]
[1672982825931,2.94358158,16826.0,16825.0,0.00870925]
[1672982831893,3.54498449,16826.0,16825.0,0.00870925]
[1672982833438,2.94358158,16826.0,16825.0,0.00870925]
[1672982833726,3.54498449,16826.0,16825.0,0.00870925]
[1672982834001,2.94358158,16826.0,16825.0,0.00870925]
[1672982834793,3.54498449,16826.0,16825.0,0.00870925]
[1672982838397,4.09377495,16826.0,16825.0,0.00870925]
[1672982838673,0.5,16825.0,16821.0,0.8756357]
[1672982838929,0.62324323,16822.0,16821.0,1.58000255]
[1672982839180,0.68285402,16822.0,16821.0,0.70670255]
[1672982839456,0.44517613,16822.0,16821.0,0.5023357]
[1672982839702,0.44517613,16822.0,16821.0,1.80793599]
[1672982841023,0.45117613,16822.0,16821.0,1.92693599]
[1672982841572,0.44647617,16822.0,16821.0,1.92693599]
[1672982842931,0.62454327,16822.0,16821.0,1.92693599]
[1672982844316,0.62454327,16822.0,16821.0,1.42693599]
[1672982844454,0.62454327,16822.0,16821.0,0.83244199]
[1672982844705,1.06971701,16822.0,16821.0,0.83244199]
[1672982844940,0.80731273,16822.0,16821.0,1.33244199]
[1672982845747,0.80731273,16822.0,16821.0,0.83244199]
[1672982846828,0.45117374,16822.0,16821.0,0.83244199]
[1672982847589,0.45117374,16822.0,16821.0,1.13244199]
[1672982847816,0.45117374,16822.0,16821.0,0.83244199]
[1672982848631,0.16028569,16822.0,16821.0,0.83244199]
[1672982849417,0.45188546,16822.0,16821.0,1.33244199]
[1672982854116,0.45188546,16822.0,16821.0,0.83244199]
[1672982855967,0.44376706,16822.0,16821.0,0.83244199]
[1672982856982,1.09168318,16823.0,16821.0,0.83244199]
[1672982857311,1.09168318,16823.0,16821.0,1.33244199]
[1672982857502,1.3197341,16823.0,16821.0,1.33244199]
[1672982858058,1.3197341,16823.0,16821.0,1.21344199]
[1672982858316,1.3247341,16823.0,16821.0,1.33844199]
[1672982858571,1.09668318,16823.0,16821.0,1.33844199]
[1672982860069,1.09668318,16823.0,16821.0,0.83844199]
[1672982860596,1.09668318,16823.0,16821.0,1.13844199]
[1672982863557,0.44577521,16822.0,16821.0,1.13844199]
[1672982863819,1.09668318,16823.0,16821.0,1.13844199]
[1672982864152,1.3252337,16823.0,16821.0,1.13844199]
[1672982864426,0.44577191,16822.0,16821.0,1.13844199]
[1672982865198,1.3252337,16823.0,16821.0,1.13844199]
[1672982865518,0.44575609,16822.0,16821.0,1.13844199]
[1672982865752,0.44575609,16822.0,16821.0,1.01344199]
[1672982866018,0.45075609,16822.0,16821.0,1.13844199]
[1672982866277,0.44575609,16822.0,16821.0,1.01344199]
[1672982866531,0.44575609,16822.0,16821.0,1.13844199]
[1672982866800,0.44575609,16822.0,16821.0,1.01344199]
[1672982867049,0.45075609,16822.0,16821.0,1.13844199]
[1672982867597,0.55644549,16822.0,16821.0,0.83844199]
[1672982868569,0.55644549,16822.0,16821.0,1.13844199]
[1672982869361,0.45075609,16822.0,16821.0,1.13844199]
[1672982874166,0.45075609,16822.0,16821.0,1.12721707]
[1672982874434,0.45075609,16822.0,16821.0,0.92387503]
[1672982874714,0.005,16822.0,16821.0,0.62387503]
[1672982874969,0.005,16822.0,16821.0,1.12387503]
[1672982875475,0.005,16822.0,16821.0,0.62387503]
[1672982876061,0.005,16822.0,16821.0,1.02387503]
[1672982876311,0.4507604,16822.0,16821.0,1.02387503]
[1672982877937,0.47556524,16822.0,16821.0,0.62387503]
[1672982880625,0.47556524,16822.0,16821.0,1.12387503]
[1672982884956,0.47556524,16822.0,16821.0,0.62387503]
[1672982885467,0.47556524,16822.0,16821.0,1.02387503]
[1672982886250,0.47556524,16822.0,16821.0,0.62387503]
[1672982886251,0.83215667,16822.0,16821.0,0.62387503]
[1672982886502,0.83215667,16822.0,16821.0,1.12387503]
[1672982886758,0.47556524,16822.0,16821.0,0.62387503]
[1672982887018,0.47556524,16822.0,16821.0,1.12387503]
[1672982887279,0.83215919,16822.0,16821.0,1.12387503]
[1672982887540,0.83215919,16822.0,16821.0,0.62387503]
[1672982888104,0.83215919,16822.0,16821.0,0.92387503]
[1672982888352,0.83215352,16822.0,16821.0,1.12387503]
[1672982889135,0.8163166,16822.0,16821.0,0.62387503]
[1672982889387,0.81630945,16822.0,16821.0,0.62387503]
[1672982889870,0.45972832,16822.0,16821.0,1.02387503]
[1672982890095,0.81631542,16822.0,16821.0,1.02387503]
[1672982890345,0.81631542,16822.0,16821.0,0.62387503]
[1672982891117,0.45972832,16822.0,16821.0,0.62387503]
[1672982891571,0.81633724,16822.0,16821.0,0.62387503]
[1672982891798,0.81633724,16822.0,16821.0,1.12387503]
[1672982893070,0.81633724,16822.0,16821.0,0.62387503]
[1672982893896,0.45972832,16822.0,16821.0,0.62387503]
[1672982896054,0.54921746,16822.0,16821.0,0.62387503]
[1672982897126,0.54921746,16822.0,16821.0,0.92387503]
[1672982897391,0.54921746,16822.0,16821.0,0.62387503]
[1672982898326,0.45972832,16822.0,16821.0,0.62387503]
[1672982899102,0.45972832,16822.0,16821.0,1.12387503]
[1672982899387,0.45972832,16822.0,16821.0,0.62387503]
[1672982899905,0.02480484,16822.0,16821.0,0.62387503]
[1672982901951,0.47058619,16822.0,16821.0,0.62387503]
[1672982902474,0.62617056,16822.0,16821.0,0.62387503]
[1672982904045,0.47058619,16822.0,16821.0,0.62387503]
[1672982908784,0.47057836,16822.0,16821.0,0.62387503]
[1672982909331,0.02480484,16822.0,16821.0,0.6237953]
[1672982909727,0.47057182,16822.0,16821.0,0.6237953]
[1672982911838,0.47057182,16822.0,16821.0,1.14780285]
[1672982914467,0.47057182,16822.0,16821.0,1.14794563]
[1672982916341,0.62616722,16822.0,16821.0,1.14799408]
[1672982916602,0.62616722,16822.0,16821.0,0.6237953]
[1672982917385,0.18038777,16822.0,16821.0,0.6237953]
[1672982918935,1.67968147,16823.0,16821.0,0.6237953]
[1672982919986,1.67968147,16823.0,16821.0,0.4987953]
[1672982920265,1.68468147,16823.0,16821.0,0.6277953]
[1672982927011,0.611637,16822.0,16821.0,0.6277953]
[1672982927268,1.68468147,16823.0,16821.0,0.6277953]
[1672982927526,2.03217301,16823.0,16821.0,0.6277953]
[1672982928276,2.02717301,16823.0,16821.0,0.4987953]
[1672982928538,0.005,16822.0,16821.0,0.6277953]
[1672982928789,2.02717301,16823.0,16821.0,0.4987953]
[1672982929068,2.03217301,16823.0,16821.0,0.6277953]
[1672982929296,2.02717301,16823.0,16821.0,0.4987953]
[1672982929535,2.03217301,16823.0,16821.0,0.6287953]
[1672982929832,2.02717301,16823.0,16821.0,0.4987953]
[1672982930088,0.2032173,16822.0,16821.0,0.6277953]
[1672982931338,0.2032173,16822.0,16821.0,0.4987953]
[1672982931597,0.2032173,16822.0,16821.0,0.6287953]
[1672982931853,2.03217301,16823.0,16821.0,0.4987953]
[1672982932117,0.005,16822.0,16821.0,0.6277953]
[1672982932908,2.02717301,16823.0,16821.0,0.4987953]
[1672982933183,0.611637,16822.0,16821.0,0.4987953]
[1672982933445,2.02717301,16823.0,16821.0,0.4987953]
[1672982934496,2.02717301,16823.0,16821.0,0.6277953]
[1672982934753,2.02717301,16823.0,16821.0,0.4987953]
[1672982935016,0.18029974,16822.0,16821.0,0.6287953]
[1672982935879,0.18029974,16822.0,16821.0,0.4987953]
[1672982936139,0.18529974,16822.0,16821.0,0.6287953]
[1672982937469,0.005,16822.0,16821.0,0.6287953]
[1672982944033,0.005,16822.0,16821.0,0.62869483]
[1672982944534,1.68437679,16822.0,16821.0,0.13]
[1672982964272,1.684281,16822.0,16821.0,0.13]
[1672982969482,1.089822,16822.0,16821.0,0.13]
[1672982971857,1.20465158,16822.0,16821.0,0.13]
[1672982972921,1.089822,16822.0,16821.0,0.13]
[1672982973683,1.684281,16822.0,16821.0,0.13]
[1672982976080,1.089822,16822.0,16821.0,0.13]
[1672982979543,1.684281,16822.0,16821.0,0.13]
[1672982979813,1.76170951,16822.0,16821.0,0.13]
[1672982980076,1.98071787,16822.0,16821.0,0.13]
[1672982980586,2.59235487,16822.0,16821.0,0.13]
[1672982980920,2.05746565,16822.0,16821.0,0.13]
[1672982981364,2.59231531,16822.0,16821.0,0.13]
[1672982981634,2.05746565,16822.0,16821.0,0.13]
[1672982981888,2.04028765,16822.0,16821.0,0.13]
[1672982982409,2.65192465,16822.0,16821.0,0.13]
[1672982987149,2.35616851,16822.0,16821.0,0.13]
[1672982987681,1.74453151,16822.0,16821.0,0.13]
[1672982988957,1.74453151,16822.0,16821.0,0.12991438]
[1672982991559,2.35616851,16822.0,16821.0,0.12991438]
[1672983001864,2.89076143,16822.0,16821.0,0.12991438]
[1672983002159,2.76483054,16822.0,16821.0,0.12991438]
[1672983002621,2.78892944,16822.0,16821.0,0.12991438]
[1672983011115,2.78892944,16822.0,16821.0,0.12982137]
[1672983012652,2.17729244,16822.0,16821.0,0.12982137]
[1672983014684,2.23648605,16822.0,16821.0,0.12982137]
[1672983014944,3.44002032,16822.0,16821.0,0.12982137]
[1672983015211,2.83861741,16822.0,16821.0,0.12982137]
[1672983015561,3.43994343,16822.0,16821.0,0.12982137]
[1672983015768,3.43979316,16822.0,16821.0,0.12982137]
[1672983017543,3.38382422,16822.0,16821.0,0.12982137]
[1672983017795,2.78264847,16822.0,16821.0,0.12982137]
[1672983018049,2.17101147,16822.0,16821.0,0.12982137]
[1672983018823,2.78264847,16822.0,16821.0,0.12982137]
[1672983019399,2.77218692,16822.0,16821.0,0.12982137]
[1672983019601,3.38382392,16822.0,16821.0,0.12982137]
[1672983021353,2.77218692,16822.0,16821.0,0.12982137]
[1672983023120,2.77208269,16822.0,16821.0,0.12982137]
[1672983023902,2.36342066,16822.0,16821.0,0.12982137]
[1672983036864,2.39906,16822.0,16821.0,0.12982137]
[1672983037166,1.76224521,16822.0,16821.0,0.12982137]
[1672983040290,2.29667362,16822.0,16821.0,0.12982137]
[1672983040550,1.76224521,16822.0,16821.0,0.12982137]
[1672983041091,2.29667086,16822.0,16821.0,0.12982137]
[1672983041336,1.76224521,16822.0,16821.0,0.12982137]
[1672983042138,2.29668986,16822.0,16821.0,0.12982137]
[1672983042422,2.64592199,16822.0,16821.0,0.12982137]
[1672983042706,2.11147734,16822.0,16821.0,0.12982137]
[1672983044312,1.76077094,16822.0,16821.0,0.12982137]
[1672983045634,1.76077094,16822.0,16821.0,0.12975839]
[1672983047405,1.66077094,16822.0,16821.0,0.12975839]
[1672983050637,1.06631194,16822.0,16821.0,0.74166964]
[1672983051691,0.0325989,16822.0,16821.0,0.74166964]
[1672983052746,0.0240989,16822.0,16821.0,0.74166964]
[1672983056099,0.6185579,16822.0,16821.0,0.74166964]
[1672983057396,1.06367452,16822.0,16821.0,0.74166964]
[1672983058685,0.6185579,16822.0,16821.0,0.74166964]
[1672983058928,1.0636718,16822.0,16821.0,0.74166964]
[1672983059448,0.6185579,16822.0,16821.0,0.74166964]
[1672983060180,0.6185579,16822.0,16821.0,0.12975839]
[1672983065131,1.06369321,16822.0,16821.0,0.12975839]
[1672983065384,0.6185579,16822.0,16821.0,0.12975839]
[1672983066449,0.61848612,16822.0,16821.0,0.12975839]
[1672983070005,1.21294512,16822.0,16821.0,0.12975839]
[1672983070508,1.74739918,16822.0,16821.0,0.12975839]
[1672983070796,1.21294512,16822.0,16821.0,0.12975839]
[1672983071262,1.74739918,16822.0,16821.0,0.12975839]
[1672983071765,1.21294512,16822.0,16821.0,0.12975839]
[1672983072015,1.74739918,16822.0,16821.0,0.12975839]
[1672983073036,1.15294018,16822.0,16821.0,0.12975839]
[1672983075369,1.74739918,16822.0,16821.0,0.12975839]
[1672983076895,1.15294018,16822.0,16821.0,0.12975839]
[1672983077654,1.74739918,16822.0,16821.0,0.12975839]
[1672983078908,1.15294018,16822.0,16821.0,0.12975839]
[1672983079952,1.74739918,16822.0,16821.0,0.12975839]
[1672983080203,1.15294018,16822.0,16821.0,0.12975839]
[1672983087679,1.15294018,16822.0,16821.0,0.12967028]
[1672983087925,0.55848118,16822.0,16821.0,0.12967028]
[1672983108095,0.55848118,16822.0,16821.0,0.12645535]
[1672983126054,0.55848118,16822.0,16821.0,0.67077951]
[1672983126860,0.55848118,16822.0,16821.0,1.32028803]
[1672983127119,0.55848118,16822.0,16821.0,0.77596387]
[1672983128484,0.66178349,16822.0,16821.0,0.77596387]
[1672983128994,0.55848118,16822.0,16821.0,0.77596387]
[1672983130334,0.55848118,16822.0,16821.0,0.77585622]
[1672983133500,0.55848118,16822.0,16821.0,0.1263477]
[1672983150570,0.55848118,16822.0,16821.0,1.23047255]
[1672983150828,0.55848118,16822.0,16821.0,0.68614839]
[1672983151083,0.73154734,16822.0,16821.0,0.1263477]
[1672983151343,0.55848118,16822.0,16821.0,0.12623563]
[1672983155156,1.15294018,16822.0,16821.0,0.12623563]
[1672983155400,0.61848612,16822.0,16821.0,0.12623563]
[1672983156680,0.55913679,16822.0,16821.0,0.12623563]
[1672983156918,0.79238566,16822.0,16821.0,0.12623563]
[1672983157607,0.55913679,16822.0,16821.0,0.12623563]
[1672983157863,0.55913679,16822.0,16821.0,1.2509105]
[1672983158125,0.55913679,16822.0,16821.0,0.70658634]
[1672983169710,0.55913679,16822.0,16821.0,1.2509105]
[1672983171501,0.55913679,16822.0,16821.0,0.70647878]
[1672983175503,0.73226601,16822.0,16821.0,0.12612807]
[1672983176000,0.55913679,16822.0,16821.0,0.67045223]
[1672983176481,0.02402712,16822.0,16821.0,0.67045223]
[1672983181030,0.02402712,16822.0,16821.0,0.97045223]
[1672983181513,0.02402712,16822.0,16821.0,0.67045223]
[1672983182028,0.02402712,16822.0,16821.0,1.17045223]
[1672983182764,0.02402712,16822.0,16821.0,0.67045223]
[1672983184742,0.02402712,16822.0,16821.0,0.97045223]
[1672983184994,0.02402712,16822.0,16821.0,0.67045223]
[1672983187751,0.02402712,16822.0,16821.0,1.17045223]
[1672983188479,0.46985592,16822.0,16821.0,1.17045223]
[1672983188976,0.46985592,16822.0,16821.0,0.67045223]
[1672983190000,0.62812552,16822.0,16821.0,0.67045223]
[1672983190509,0.18229672,16822.0,16821.0,0.12612807]
[1672983192315,0.74267095,16822.0,16821.0,0.12612807]
[1672983192565,1.27778062,16822.0,16821.0,0.12612807]
[1672983192925,1.88941762,16822.0,16821.0,0.12612807]
[1672983193088,2.48387662,16822.0,16821.0,0.12612807]
[1672983194076,1.88941762,16822.0,16821.0,0.12612807]
[1672983194345,1.27778062,16822.0,16821.0,0.12612807]
[1672983196098,1.27778062,16822.0,16821.0,0.12605189]
[1672983207037,0.74267095,16822.0,16821.0,0.12605189]
[1672983208588,0.58440135,16822.0,16821.0,0.12605189]
[1672983208815,0.58440135,16822.0,16821.0,0.67037605]
[1672983210102,0.58440135,16822.0,16821.0,0.12605189]
[1672983211151,0.58440135,16822.0,16821.0,0.67037605]
[1672983212720,0.58440135,16822.0,16821.0,0.12605189]
[1672983212979,0.65818732,16822.0,16821.0,0.12605189]
[1672983217085,0.58440135,16822.0,16821.0,0.12605189]
[1672983217362,1.11951102,16822.0,16821.0,0.12605189]
[1672983219149,1.11951102,16822.0,16821.0,0.1259418]
[1672983229605,1.11951102,16822.0,16821.0,1.216872]
[1672983229859,1.11951102,16822.0,16821.0,0.67254784]
[1672983230411,0.58440135,16822.0,16821.0,0.67254784]
[1672983230649,0.58440135,16822.0,16821.0,1.216872]
[1672983236126,0.58440135,16822.0,16821.0,1.811366]
[1672983236633,0.02402712,16822.0,16821.0,1.811366]
[1672983237910,0.02402712,16822.0,16821.0,1.216872]
[1672983239966,0.02402712,16822.0,16821.0,1.21675845]
[1672983240478,0.46982631,16822.0,16821.0,1.21675845]
[1672983241739,0.46979147,16822.0,16821.0,1.21675845]
[1672983241998,0.02402712,16822.0,16821.0,1.21675845]
[1672983242785,0.46976197,16822.0,16821.0,1.21675845]
[1672983243804,0.02402712,16822.0,16821.0,1.21675845]
[1672983245113,0.46974379,16822.0,16821.0,1.21675845]
[1672983245384,0.02402712,16822.0,16821.0,1.21675845]
[1672983245868,0.46973145,16822.0,16821.0,1.21675845]
[1672983246423,0.02402712,16822.0,16821.0,1.21675845]
[1672983246751,0.46972643,16822.0,16821.0,1.21675845]
[1672983247196,0.63462709,16822.0,16821.0,1.21675845]
[1672983247788,0.46972643,16822.0,16821.0,1.81125245]
[1672983251356,0.82624433,16822.0,16821.0,1.81125245]
[1672983251600,0.46972643,16822.0,16821.0,1.81125245]
[1672983252647,0.82622548,16822.0,16821.0,2.40574645]
[1672983253118,1.09359995,16822.0,16821.0,2.40574645]
[1672983253361,0.64790064,16822.0,16821.0,2.40574645]
[1672983259172,0.82610127,16822.0,16821.0,2.40574645]
[1672983259613,0.64790064,16822.0,16821.0,2.40574645]
[1672983259863,0.46960026,16822.0,16821.0,2.40574645]
[1672983260357,0.82609931,16822.0,16821.0,2.40574645]
[1672983260840,0.64790064,16822.0,16821.0,2.40574645]
[1672983261586,0.4695906,16822.0,16821.0,2.40574645]
[1672983266781,0.46948151,16822.0,16821.0,2.40574645]
[1672983278628,0.46479193,16822.0,16821.0,2.40574645]
[1672983283019,0.82129098,16822.0,16821.0,2.40574645]
[1672983284038,0.46479193,16822.0,16821.0,2.40574645]
[1672983284551,0.82129098,16822.0,16821.0,2.40574645]
[1672983285077,0.46479193,16822.0,16821.0,2.40574645]
[1672983286350,0.64310197,16822.0,16821.0,2.40574645]
[1672983291180,1.08880128,16822.0,16821.0,2.40574645]
[1672983291439,0.64310197,16822.0,16821.0,2.40574645]
[1672983292756,0.82142681,16822.0,16821.0,2.40574645]
[1672983301277,0.82142681,16822.0,16821.0,2.40568309]
[1672983303575,1.08886219,16822.0,16821.0,2.40568309]
[1672983303854,0.64316288,16822.0,16821.0,2.40568309]
[1672983304647,0.62393443,16822.0,16821.0,2.40568309]
[1672983305366,0.64341161,16822.0,16821.0,2.40568309]
[1672983305923,1.08911092,16822.0,16821.0,2.40568309]
[1672983306149,0.64341161,16822.0,16821.0,2.40568309]
[1672983313672,0.82167554,16822.0,16821.0,2.40568309]
[1672983314448,0.64343397,16822.0,16821.0,2.40568309]
[1672983316051,1.08913328,16822.0,16821.0,2.40568309]
[1672983316505,0.64343397,16822.0,16821.0,2.40568309]
[1672983316757,1.08913328,16822.0,16821.0,2.40568309]
[1672983317040,0.64343397,16822.0,16821.0,2.40568309]
[1672983317604,1.08913328,16822.0,16821.0,2.40568309]
[1672983318327,0.64343397,16822.0,16821.0,2.40568309]
[1672983319088,1.08913328,16822.0,16821.0,2.40568309]
[1672983320759,0.82167554,16822.0,16821.0,2.40568309]
[1672983322349,0.46517649,16822.0,16821.0,0.72025889]
[1672983322623,0.46517649,16822.0,16821.0,1.26458305]
[1672983324672,0.46517649,16822.0,16821.0,1.26451505]
[1672983327857,0.82167679,16822.0,16821.0,1.26451505]